[Event "Early-Titled-Tuesday-Blitz-October-03-2023"]
[Site "Chess.com"]
[Date "2023.10.03"]
[Round "2"]
[White "Rital44"]
[Black "Alexei_Gubajdullin"]
[Result "0-1"]
[WhiteElo "2516"]
[BlackElo "2735"]
[TimeControl "180+1"]
[EndTime "8:18:12 PDT"]
[Termination "Alexei_Gubajdullin won on time"]

1. d4 {[%clk 0:02:55.4]} 1... Nf6 {[%clk 0:02:59.9]} 2. c4 {[%clk 0:02:53]} 2...
g6 {[%clk 0:03:00.3]} 3. Nf3 {[%clk 0:02:52.2]} 3... Bg7 {[%clk 0:03:00.6]} 4.
Nc3 {[%clk 0:02:51.3]} 4... O-O {[%clk 0:03:00.7]} 5. e4 {[%clk 0:02:51.6]} 5...
d6 {[%clk 0:03:01.2]} 6. Be2 {[%clk 0:02:52.4]} 6... Na6 {[%clk 0:03:01.5]} 7.
O-O {[%clk 0:02:52.7]} 7... e5 {[%clk 0:03:01.8]} 8. Be3 {[%clk 0:02:53.2]} 8...
c6 {[%clk 0:03:00.8]} 9. d5 {[%clk 0:02:49.6]} 9... Ng4 {[%clk 0:03:00.4]} 10.
Bg5 {[%clk 0:02:49.6]} 10... f6 {[%clk 0:03:00.8]} 11. Bh4 {[%clk 0:02:50.3]}
11... c5 {[%clk 0:03:00.9]} 12. Nd2 {[%clk 0:02:48.5]} 12... h5 {[%clk
0:02:58.8]} 13. a3 {[%clk 0:02:44.9]} 13... Nh6 {[%clk 0:02:55.5]} 14. f3 {[%clk
0:02:42.6]} 14... Nf7 {[%clk 0:02:54.8]} 15. Rb1 {[%clk 0:02:40.9]} 15... Bh6
{[%clk 0:02:54.6]} 16. Bf2 {[%clk 0:02:33.2]} 16... Bg5 {[%clk 0:02:50.1]} 17.
b4 {[%clk 0:02:28.6]} 17... Kg7 {[%clk 0:02:48.9]} 18. bxc5 {[%clk 0:02:14.1]}
18... Nxc5 {[%clk 0:02:48.5]} 19. Nb3 {[%clk 0:02:12.8]} 19... b6 {[%clk
0:02:45.8]} 20. a4 {[%clk 0:02:11.8]} 20... a5 {[%clk 0:02:25.5]} 21. Nxc5
{[%clk 0:02:09.7]} 21... dxc5 {[%clk 0:02:25.2]} 22. Rb3 {[%clk 0:01:55.3]}
22... Bd7 {[%clk 0:02:21.2]} 23. Qb1 {[%clk 0:01:53.8]} 23... Rb8 {[%clk
0:02:16.3]} 24. d6 {[%clk 0:01:48.1]} 24... Nxd6 {[%clk 0:02:12.6]} 25. Rd1
{[%clk 0:01:48]} 25... Nf7 {[%clk 0:01:58.3]} 26. Nd5 {[%clk 0:01:23.9]} 26...
Qe8 {[%clk 0:01:10.3]} 27. Nxb6 {[%clk 0:01:04.5]} 27... Bc6 {[%clk 0:01:07.9]}
28. Bxc5 {[%clk 0:00:59.1]} 28... Rh8 {[%clk 0:01:07.4]} 29. Qd3 {[%clk
0:00:47.4]} 29... Bxa4 {[%clk 0:00:59.3]} 30. Nxa4 {[%clk 0:00:45.3]} 30... Qxa4
{[%clk 0:00:59]} 31. Rb5 {[%clk 0:00:29.4]} 31... Rhd8 {[%clk 0:00:52.7]} 32.
Rxb8 {[%clk 0:00:21.5]} 32... Rxd3 {[%clk 0:00:49.2]} 33. Rxd3 {[%clk
0:00:20.6]} 33... Qxc4 {[%clk 0:00:45.4]} 34. Bf2 {[%clk 0:00:19.8]} 34... Qc2
{[%clk 0:00:36.9]} 35. Bf1 {[%clk 0:00:19.2]} 35... Qc6 {[%clk 0:00:31.5]} 36.
Rb6 {[%clk 0:00:08.7]} 36... Qc7 {[%clk 0:00:29.5]} 37. Ra6 {[%clk 0:00:09]}
37... h4 {[%clk 0:00:26.2]} 38. Ra3 {[%clk 0:00:08.5]} 38... Bd2 {[%clk
0:00:25.1]} 39. Rd3 {[%clk 0:00:05.5]} 39... Bb4 {[%clk 0:00:24.5]} 40. Ra8
{[%clk 0:00:05.6]} 40... h3 {[%clk 0:00:23.4]} 41. g3 {[%clk 0:00:05.6]} 41...
Bc5 {[%clk 0:00:23.7]} 42. Bxh3 {[%clk 0:00:05.3]} 42... Bxf2+ {[%clk 0:00:23]}
43. Kxf2 {[%clk 0:00:06.2]} 43... Qc2+ {[%clk 0:00:19.7]} 44. Ke3 {[%clk
0:00:06.8]} 44... Qc1+ {[%clk 0:00:19.4]} 45. Rd2 {[%clk 0:00:06.1]} 45... Ng5
{[%clk 0:00:18.6]} 46. Bg4 {[%clk 0:00:05.4]} 46... f5 {[%clk 0:00:16]} 47. exf5
{[%clk 0:00:04.5]} 47... gxf5 {[%clk 0:00:15.6]} 48. Bxf5 {[%clk 0:00:04.9]}
48... Nxf3 {[%clk 0:00:15.9]} 49. Kxf3 {[%clk 0:00:04]} 49... Qxd2 {[%clk
0:00:15.8]} 50. Ra7+ {[%clk 0:00:03.2]} 50... Kf6 {[%clk 0:00:15.2]} 51. Be4
{[%clk 0:00:01.5]} 51... Qd1+ {[%clk 0:00:13.5]} 52. Kg2 {[%clk 0:00:01.3]}
52... Qe2+ {[%clk 0:00:13.2]} 53. Kh3 {[%clk 0:00:02]} 53... Qxe4 {[%clk
0:00:13.3]} 54. Rxa5 {[%clk 0:00:02.6]} 54... Qe2 {[%clk 0:00:10.5]} 0-1

[Event "Early-Titled-Tuesday-Blitz-October-03-2023"]
[Site "Chess.com"]
[Date "2023.10.03"]
[Round "2"]
[White "Dixit_Nikhil"]
[Black "Elsa167"]
[Result "1-0"]
[WhiteElo "2629"]
[BlackElo "2910"]
[TimeControl "180+1"]
[EndTime "8:18:13 PDT"]
[Termination "Dixit_Nikhil won on time"]

1. e4 {[%clk 0:02:57.2]} 1... c5 {[%clk 0:02:58.3]} 2. Nf3 {[%clk 0:02:52.1]}
2... d6 {[%clk 0:02:58.7]} 3. Bb5+ {[%clk 0:02:51.6]} 3... Nd7 {[%clk
0:02:58.7]} 4. d4 {[%clk 0:02:47.9]} 4... cxd4 {[%clk 0:02:58.1]} 5. Qxd4 {[%clk
0:02:46.7]} 5... a6 {[%clk 0:02:57.7]} 6. Bxd7+ {[%clk 0:02:45]} 6... Bxd7
{[%clk 0:02:58.6]} 7. Nc3 {[%clk 0:02:41.6]} 7... Nf6 {[%clk 0:02:58.4]} 8. Bg5
{[%clk 0:02:40.2]} 8... e6 {[%clk 0:02:58.5]} 9. O-O-O {[%clk 0:02:36.5]} 9...
Bc6 {[%clk 0:02:46.3]} 10. e5 {[%clk 0:02:31]} 10... dxe5 {[%clk 0:02:43.6]} 11.
Qxd8+ {[%clk 0:02:26.5]} 11... Rxd8 {[%clk 0:02:43.4]} 12. Rxd8+ {[%clk
0:02:27]} 12... Kxd8 {[%clk 0:02:44.3]} 13. Nxe5 {[%clk 0:02:27.6]} 13... Be8
{[%clk 0:02:25.6]} 14. Rd1+ {[%clk 0:02:22]} 14... Kc8 {[%clk 0:02:25.7]} 15.
Nc4 {[%clk 0:02:12.1]} 15... Bc5 {[%clk 0:01:53.3]} 16. Nd6+ {[%clk 0:01:48.2]}
16... Bxd6 {[%clk 0:01:41.8]} 17. Rxd6 {[%clk 0:01:49.1]} 17... Bc6 {[%clk
0:01:42.4]} 18. f3 {[%clk 0:01:45.6]} 18... h6 {[%clk 0:01:33.5]} 19. Bxf6
{[%clk 0:01:45.5]} 19... gxf6 {[%clk 0:01:34.4]} 20. Rd3 {[%clk 0:01:25]} 20...
h5 {[%clk 0:01:26.4]} 21. Kd2 {[%clk 0:01:17.4]} 21... Rg8 {[%clk 0:01:19.9]}
22. g3 {[%clk 0:01:16.1]} 22... h4 {[%clk 0:01:20]} 23. Ne2 {[%clk 0:01:07.7]}
23... hxg3 {[%clk 0:01:12.3]} 24. hxg3 {[%clk 0:01:08.6]} 24... Rh8 {[%clk
0:01:05.8]} 25. Ke3 {[%clk 0:01:07.1]} 25... e5 {[%clk 0:00:59.4]} 26. c4 {[%clk
0:01:05.9]} 26... Kc7 {[%clk 0:00:58.7]} 27. b3 {[%clk 0:01:04.8]} 27... Rh2
{[%clk 0:00:58.1]} 28. Rd2 {[%clk 0:01:02.2]} 28... f5 {[%clk 0:00:48.4]} 29. f4
{[%clk 0:00:49.3]} 29... f6 {[%clk 0:00:47.9]} 30. Nc3 {[%clk 0:00:42.1]} 30...
Rh3 {[%clk 0:00:43.4]} 31. Ne2 {[%clk 0:00:37.6]} 31... Be8 {[%clk 0:00:33.8]}
32. Rd5 {[%clk 0:00:29.9]} 32... Bf7 {[%clk 0:00:23]} 33. Rd2 {[%clk 0:00:19.5]}
33... Bh5 {[%clk 0:00:21.7]} 34. Rd5 {[%clk 0:00:19.4]} 34... Rh2 {[%clk
0:00:17.8]} 35. Nc3 {[%clk 0:00:18.1]} 35... Bf7 {[%clk 0:00:12.6]} 36. Rd2
{[%clk 0:00:17.2]} 36... Rh3 {[%clk 0:00:11.8]} 37. Ne2 {[%clk 0:00:16.9]} 37...
a5 {[%clk 0:00:10.8]} 38. c5 {[%clk 0:00:14]} 38... Bh5 {[%clk 0:00:07.2]} 39.
Rd5 {[%clk 0:00:13.2]} 39... Kc6 {[%clk 0:00:05.8]} 40. Rd6+ {[%clk 0:00:13.1]}
40... Kxc5 {[%clk 0:00:06.4]} 41. Rxf6 {[%clk 0:00:13.7]} 41... Bxe2 {[%clk
0:00:05.8]} 42. Kxe2 {[%clk 0:00:13.4]} 42... exf4 {[%clk 0:00:03.7]} 43. Rxf5+
{[%clk 0:00:13.5]} 43... Kb4 {[%clk 0:00:03.2]} 44. Rxf4+ {[%clk 0:00:14.1]}
44... Kb5 {[%clk 0:00:03.8]} 45. Kf3 {[%clk 0:00:13.3]} 45... Rh2 {[%clk
0:00:04.2]} 46. a4+ {[%clk 0:00:13.3]} 46... Kc5 {[%clk 0:00:04.4]} 47. Rf5+
{[%clk 0:00:13.2]} 47... Kb6 {[%clk 0:00:04]} 48. Rb5+ {[%clk 0:00:13.4]} 48...
Ka6 {[%clk 0:00:04.6]} 49. Kg4 {[%clk 0:00:13.6]} 49... b6 {[%clk 0:00:03.7]}
50. Kg5 {[%clk 0:00:13.4]} 50... Kb7 {[%clk 0:00:04.3]} 51. g4 {[%clk
0:00:13.7]} 51... Kc6 {[%clk 0:00:04.9]} 52. Kg6 {[%clk 0:00:13.7]} 52... Re2
{[%clk 0:00:04.3]} 53. g5 {[%clk 0:00:13.9]} 53... Re6+ {[%clk 0:00:05.1]} 54.
Kf7 {[%clk 0:00:13.8]} 54... Kd7 {[%clk 0:00:05.8]} 55. Rd5+ {[%clk 0:00:12.4]}
1-0

[Event "Early-Titled-Tuesday-Blitz-October-03-2023"]
[Site "Chess.com"]
[Date "2023.10.03"]
[Round "2"]
[White "Maus7"]
[Black "soumeow"]
[Result "1-0"]
[WhiteElo "2479"]
[BlackElo "2235"]
[TimeControl "180+1"]
[EndTime "8:18:15 PDT"]
[Termination "Maus7 won by resignation"]

1. e4 {[%clk 0:03:00.9]} 1... c5 {[%clk 0:02:59.4]} 2. Nf3 {[%clk 0:03:01.4]}
2... Nc6 {[%clk 0:02:59.6]} 3. d4 {[%clk 0:03:02.2]} 3... cxd4 {[%clk
0:03:00.5]} 4. Nxd4 {[%clk 0:03:02.9]} 4... Nf6 {[%clk 0:03:00.6]} 5. Nc3 {[%clk
0:03:03.5]} 5... d6 {[%clk 0:03:01.1]} 6. Bg5 {[%clk 0:03:02.9]} 6... e6 {[%clk
0:03:01]} 7. Qd3 {[%clk 0:03:02.8]} 7... Bd7 {[%clk 0:02:55.4]} 8. Ndb5 {[%clk
0:03:01.8]} 8... Nb4 {[%clk 0:02:52.6]} 9. Qd1 {[%clk 0:03:00.8]} 9... Qb8
{[%clk 0:02:03.1]} 10. Bf4 {[%clk 0:02:59.7]} 10... e5 {[%clk 0:01:51.1]} 11.
Bg5 {[%clk 0:03:00.2]} 11... a6 {[%clk 0:01:41.4]} 12. Na3 {[%clk 0:02:57]}
12... b5 {[%clk 0:01:29.8]} 13. Bxf6 {[%clk 0:02:54.6]} 13... gxf6 {[%clk
0:01:30.7]} 14. Nab1 {[%clk 0:02:54.8]} 14... f5 {[%clk 0:00:57.3]} 15. a3
{[%clk 0:02:45.1]} 15... Nc6 {[%clk 0:00:56.8]} 16. exf5 {[%clk 0:02:35.3]}
16... Bxf5 {[%clk 0:00:52.9]} 17. g4 {[%clk 0:02:34.4]} 17... Be6 {[%clk
0:00:38.1]} 18. Bg2 {[%clk 0:02:31.6]} 18... Qc8 {[%clk 0:00:37.9]} 19. Ne4
{[%clk 0:02:04.6]} 19... Nd4 {[%clk 0:00:19.2]} 20. Nbc3 {[%clk 0:02:04.4]}
20... Be7 {[%clk 0:00:14.7]} 21. g5 {[%clk 0:01:57.6]} 21... O-O {[%clk
0:00:10.2]} 22. Nf6+ {[%clk 0:01:50.1]} 22... Bxf6 {[%clk 0:00:10.4]} 23. gxf6
{[%clk 0:01:51]} 23... Kh8 {[%clk 0:00:11]} 24. Qh5 {[%clk 0:01:27.6]} 24... Rg8
{[%clk 0:00:10.8]} 25. Be4 {[%clk 0:01:22.3]} 25... Bf5 {[%clk 0:00:08.6]} 26.
Bxf5 {[%clk 0:01:16.1]} 26... Qxf5 {[%clk 0:00:09.5]} 27. Qxf5 {[%clk
0:01:13.1]} 27... Nxf5 {[%clk 0:00:10.4]} 28. O-O-O {[%clk 0:00:59.3]} 28... Nd4
{[%clk 0:00:10.3]} 29. Ne4 {[%clk 0:00:51.7]} 29... Rad8 {[%clk 0:00:09.6]} 30.
c3 {[%clk 0:00:50.2]} 30... Ne2+ {[%clk 0:00:09.1]} 31. Kc2 {[%clk 0:00:48.4]}
31... d5 {[%clk 0:00:09.5]} 32. Ng3 {[%clk 0:00:47.7]} 32... Rg6 {[%clk
0:00:08.4]} 33. Nxe2 {[%clk 0:00:47.3]} 33... Rxf6 {[%clk 0:00:07.9]} 34. Rd2
{[%clk 0:00:35.8]} 34... Rxf2 {[%clk 0:00:07.5]} 35. Ng3 {[%clk 0:00:36.5]}
35... Rxd2+ {[%clk 0:00:06.1]} 36. Kxd2 {[%clk 0:00:37.4]} 36... Kg7 {[%clk
0:00:05.4]} 37. a4 {[%clk 0:00:35.3]} 37... Kg6 {[%clk 0:00:05]} 38. axb5 {[%clk
0:00:34.6]} 38... axb5 {[%clk 0:00:05.9]} 39. Ra1 {[%clk 0:00:34.7]} 39... f5
{[%clk 0:00:05]} 40. Ra5 {[%clk 0:00:25.9]} 40... f4 {[%clk 0:00:05.2]} 41. Ne2
{[%clk 0:00:24.5]} 41... Kf5 {[%clk 0:00:04.5]} 42. Rxb5 {[%clk 0:00:24.3]}
42... f3 {[%clk 0:00:04.5]} 43. Ng3+ {[%clk 0:00:22.1]} 43... Kf4 {[%clk
0:00:04.6]} 44. Rb7 {[%clk 0:00:21.9]} 44... Rf8 {[%clk 0:00:02.9]} 45. Rxh7
{[%clk 0:00:22.1]} 45... e4 {[%clk 0:00:03.2]} 46. Rh4+ {[%clk 0:00:21.8]} 46...
Kg5 {[%clk 0:00:03.4]} 47. Rh5+ {[%clk 0:00:22.1]} 47... Kg4 {[%clk 0:00:03.7]}
48. Rxd5 {[%clk 0:00:17.6]} 48... Rh8 {[%clk 0:00:03.3]} 49. Nf1 {[%clk
0:00:17.1]} 49... Kf4 {[%clk 0:00:02.5]} 50. Rd7 {[%clk 0:00:14.2]} 50... e3+
{[%clk 0:00:02.3]} 51. Nxe3 {[%clk 0:00:13.8]} 51... Rxh2+ {[%clk 0:00:02.9]}
52. Kd3 {[%clk 0:00:14.4]} 52... Rxb2 {[%clk 0:00:02.3]} 53. Rf7+ {[%clk
0:00:14.5]} 53... Kg3 {[%clk 0:00:02.6]} 54. Rg7+ {[%clk 0:00:10.5]} 54... Kf2
{[%clk 0:00:02.9]} 55. Nd1+ {[%clk 0:00:08.9]} 1-0

[Event "Early-Titled-Tuesday-Blitz-October-03-2023"]
[Site "Chess.com"]
[Date "2023.10.03"]
[Round "2"]
[White "chito89"]
[Black "Journey_to_GrandMaster_YT"]
[Result "1-0"]
[WhiteElo "2807"]
[BlackElo "2550"]
[TimeControl "180+1"]
[EndTime "8:18:19 PDT"]
[Termination "chito89 won by checkmate"]

1. Nf3 {[%clk 0:02:46]} 1... d6 {[%clk 0:03:00.9]} 2. e4 {[%clk 0:02:44.2]} 2...
Nf6 {[%clk 0:03:01.1]} 3. Nc3 {[%clk 0:02:44.1]} 3... e5 {[%clk 0:03:01.2]} 4.
d4 {[%clk 0:02:44.6]} 4... Nbd7 {[%clk 0:03:01.5]} 5. Rg1 {[%clk 0:02:45.3]}
5... h5 {[%clk 0:02:58.4]} 6. h3 {[%clk 0:02:45.5]} 6... c6 {[%clk 0:02:49.7]}
7. Be3 {[%clk 0:02:42.7]} 7... b5 {[%clk 0:02:47.3]} 8. a3 {[%clk 0:02:39.6]}
8... Bb7 {[%clk 0:02:46.7]} 9. g4 {[%clk 0:02:29.8]} 9... hxg4 {[%clk
0:02:47.6]} 10. hxg4 {[%clk 0:02:30.7]} 10... Be7 {[%clk 0:02:46.2]} 11. g5
{[%clk 0:02:28.3]} 11... Nh5 {[%clk 0:02:46]} 12. Qd2 {[%clk 0:02:14.7]} 12...
g6 {[%clk 0:02:45.8]} 13. O-O-O {[%clk 0:02:02.7]} 13... a5 {[%clk 0:02:37.3]}
14. Kb1 {[%clk 0:01:34]} 14... b4 {[%clk 0:02:34.8]} 15. Na4 {[%clk 0:01:33.5]}
15... exd4 {[%clk 0:02:29.8]} 16. Nxd4 {[%clk 0:01:22.4]} 16... bxa3 {[%clk
0:02:29.5]} 17. b3 {[%clk 0:01:22.5]} 17... O-O {[%clk 0:02:22.3]} 18. Ka2
{[%clk 0:01:18.8]} 18... c5 {[%clk 0:02:02.8]} 19. Nb5 {[%clk 0:01:18.6]} 19...
Bxe4 {[%clk 0:02:02.9]} 20. Be2 {[%clk 0:01:06.9]} 20... d5 {[%clk 0:01:45.9]}
21. Nbc3 {[%clk 0:00:54.6]} 21... Ne5 {[%clk 0:01:34.4]} 22. Nxd5 {[%clk
0:00:51.3]} 22... c4 {[%clk 0:01:11.1]} 23. Nxe7+ {[%clk 0:00:41.4]} 23... Qxe7
{[%clk 0:01:11.1]} 24. Bc5 {[%clk 0:00:42.1]} 24... cxb3+ {[%clk 0:01:11.1]} 25.
cxb3 {[%clk 0:00:43]} 25... Qe6 {[%clk 0:00:55.1]} 26. Bxh5 {[%clk 0:00:30.5]}
26... gxh5 {[%clk 0:00:53.7]} 27. Bxf8 {[%clk 0:00:23.7]} 27... Nf3 {[%clk
0:00:53.2]} 28. Qc3 {[%clk 0:00:21.4]} 28... Rxf8 {[%clk 0:00:51.3]} 29. Rg3
{[%clk 0:00:18.2]} 29... Rc8 {[%clk 0:00:48.8]} 30. Qf6 {[%clk 0:00:11.3]} 30...
Ne5 {[%clk 0:00:18.5]} 31. Qxe6 {[%clk 0:00:06.1]} 31... fxe6 {[%clk 0:00:18.6]}
32. Re3 {[%clk 0:00:06]} 32... Rc2+ {[%clk 0:00:15.6]} 33. Kxa3 {[%clk
0:00:05.8]} 33... Bf3 {[%clk 0:00:14.4]} 34. Rd8+ {[%clk 0:00:05.7]} 34... Kg7
{[%clk 0:00:14.3]} 35. Rxe5 {[%clk 0:00:06.4]} 35... Rxf2 {[%clk 0:00:14]} 36.
Rxe6 {[%clk 0:00:05.3]} 36... Bg4 {[%clk 0:00:11.2]} 37. Rf6 {[%clk 0:00:05.5]}
37... Rxf6 {[%clk 0:00:10.8]} 38. gxf6+ {[%clk 0:00:06.4]} 38... Kxf6 {[%clk
0:00:11]} 39. Nc5 {[%clk 0:00:05.1]} 39... h4 {[%clk 0:00:11.4]} 40. Rd4 {[%clk
0:00:05.3]} 40... Kg5 {[%clk 0:00:11.3]} 41. Ne4+ {[%clk 0:00:05.6]} 41... Kf5
{[%clk 0:00:09.1]} 42. Nf2 {[%clk 0:00:06]} 42... Bf3 {[%clk 0:00:04.9]} 43.
Rxh4 {[%clk 0:00:06.4]} 43... Ke5 {[%clk 0:00:05.1]} 44. Ra4 {[%clk 0:00:06.7]}
44... Kd5 {[%clk 0:00:04.3]} 45. Rxa5+ {[%clk 0:00:07.2]} 45... Kc6 {[%clk
0:00:05.2]} 46. Nd3 {[%clk 0:00:07.3]} 46... Kb6 {[%clk 0:00:05.3]} 47. Re5
{[%clk 0:00:07.8]} 47... Bc6 {[%clk 0:00:05.7]} 48. Kb4 {[%clk 0:00:07.6]} 48...
Kc7 {[%clk 0:00:05.9]} 49. Kc5 {[%clk 0:00:07.3]} 49... Bb7 {[%clk 0:00:06.1]}
50. b4 {[%clk 0:00:07.8]} 50... Kb8 {[%clk 0:00:06.4]} 51. b5 {[%clk 0:00:08.2]}
51... Bc8 {[%clk 0:00:07.3]} 52. b6 {[%clk 0:00:07.8]} 52... Bh3 {[%clk
0:00:07.8]} 53. Re7 {[%clk 0:00:07.4]} 53... Bc8 {[%clk 0:00:08.1]} 54. Nb4
{[%clk 0:00:07.9]} 54... Bb7 {[%clk 0:00:07.2]} 55. Nc6+ {[%clk 0:00:07.7]}
55... Bxc6 {[%clk 0:00:07.4]} 56. Kxc6 {[%clk 0:00:08.6]} 56... Ka8 {[%clk
0:00:07.4]} 57. Re8# {[%clk 0:00:08]} 1-0

[Event "Early-Titled-Tuesday-Blitz-October-03-2023"]
[Site "Chess.com"]
[Date "2023.10.03"]
[Round "2"]
[White "chesskov1982"]
[Black "Keeper0416"]
[Result "1/2-1/2"]
[WhiteElo "2822"]
[BlackElo "2586"]
[TimeControl "180+1"]
[EndTime "8:18:20 PDT"]
[Termination "Game drawn - insufficient material"]

1. d4 {[%clk 0:02:59.4]} 1... Nf6 {[%clk 0:02:59.9]} 2. Nc3 {[%clk 0:02:59.6]}
2... d5 {[%clk 0:03:00]} 3. Bf4 {[%clk 0:03:00.1]} 3... Bf5 {[%clk 0:02:58.3]}
4. e3 {[%clk 0:02:53.7]} 4... e6 {[%clk 0:02:58.4]} 5. Nf3 {[%clk 0:02:38.6]}
5... Bd6 {[%clk 0:02:58.2]} 6. Bg3 {[%clk 0:02:30.9]} 6... O-O {[%clk
0:02:56.4]} 7. Bd3 {[%clk 0:02:29.5]} 7... Bxd3 {[%clk 0:02:55.9]} 8. cxd3
{[%clk 0:02:30.4]} 8... c5 {[%clk 0:02:56.6]} 9. dxc5 {[%clk 0:02:08.2]} 9...
Bxc5 {[%clk 0:02:57.5]} 10. d4 {[%clk 0:02:08.4]} 10... Bb4 {[%clk 0:02:54.9]}
11. O-O {[%clk 0:02:07.6]} 11... Nc6 {[%clk 0:02:54.6]} 12. Rc1 {[%clk
0:01:58.8]} 12... Bxc3 {[%clk 0:02:53.8]} 13. Rxc3 {[%clk 0:01:54.7]} 13... Ne4
{[%clk 0:02:53.5]} 14. Rc1 {[%clk 0:01:54.8]} 14... Qb6 {[%clk 0:02:53.1]} 15.
Qe2 {[%clk 0:01:53.3]} 15... Rac8 {[%clk 0:02:50.7]} 16. a3 {[%clk 0:01:51.7]}
16... Na5 {[%clk 0:02:50.2]} 17. Ne5 {[%clk 0:01:51.2]} 17... Nb3 {[%clk
0:02:42.2]} 18. Rc2 {[%clk 0:01:39.4]} 18... Nxg3 {[%clk 0:02:19.3]} 19. hxg3
{[%clk 0:01:33.3]} 19... Rc7 {[%clk 0:02:07.7]} 20. Rxc7 {[%clk 0:01:12.7]}
20... Qxc7 {[%clk 0:02:08.6]} 21. Qd3 {[%clk 0:01:12.9]} 21... Nc1 {[%clk
0:01:56]} 22. Qb5 {[%clk 0:01:03.3]} 22... Rc8 {[%clk 0:01:45.7]} 23. Qd7 {[%clk
0:00:57.8]} 23... Qxd7 {[%clk 0:01:22]} 24. Nxd7 {[%clk 0:00:58.7]} 24... Nd3
{[%clk 0:01:22.4]} 25. Nc5 {[%clk 0:00:55.7]} 25... Nxc5 {[%clk 0:00:58.2]} 26.
Rc1 {[%clk 0:00:54.9]} 26... b6 {[%clk 0:00:58.7]} 27. b4 {[%clk 0:00:54.5]}
27... e5 {[%clk 0:00:49.4]} 28. bxc5 {[%clk 0:00:52]} 28... bxc5 {[%clk
0:00:49.7]} 29. dxc5 {[%clk 0:00:47]} 29... f6 {[%clk 0:00:47]} 30. Kf1 {[%clk
0:00:46.9]} 30... Kf7 {[%clk 0:00:47.6]} 31. Ke2 {[%clk 0:00:46.6]} 31... Ke6
{[%clk 0:00:48.1]} 32. Kd3 {[%clk 0:00:46.3]} 32... Kd7 {[%clk 0:00:48.7]} 33.
f4 {[%clk 0:00:42]} 33... Kc6 {[%clk 0:00:44.9]} 34. fxe5 {[%clk 0:00:42]} 34...
fxe5 {[%clk 0:00:45.8]} 35. e4 {[%clk 0:00:42.5]} 35... Rd8 {[%clk 0:00:42.6]}
36. Rf1 {[%clk 0:00:36.7]} 36... Rd7 {[%clk 0:00:36.7]} 37. exd5+ {[%clk
0:00:33.2]} 37... Kxd5 {[%clk 0:00:37.6]} 38. c6 {[%clk 0:00:30.7]} 38... Kxc6+
{[%clk 0:00:30]} 39. Ke4 {[%clk 0:00:31.2]} 39... Re7 {[%clk 0:00:17.8]} 40. g4
{[%clk 0:00:28.8]} 40... h6 {[%clk 0:00:17]} 41. Rb1 {[%clk 0:00:28.4]} 41...
Kc5 {[%clk 0:00:16.8]} 42. a4 {[%clk 0:00:28.4]} 42... Kc4 {[%clk 0:00:16.3]}
43. a5 {[%clk 0:00:28.8]} 43... Kc3 {[%clk 0:00:15.1]} 44. a6 {[%clk 0:00:29.2]}
44... Re6 {[%clk 0:00:14.6]} 45. Rb7 {[%clk 0:00:26.6]} 45... Rxa6 {[%clk
0:00:10]} 46. Rxg7 {[%clk 0:00:26.7]} 46... Kb4 {[%clk 0:00:05.3]} 47. Kxe5
{[%clk 0:00:25.2]} 47... Ra2 {[%clk 0:00:04.5]} 48. Kf5 {[%clk 0:00:23.9]} 48...
a5 {[%clk 0:00:04.8]} 49. Rh7 {[%clk 0:00:23.8]} 49... Rf2+ {[%clk 0:00:04]} 50.
Ke4 {[%clk 0:00:22.5]} 50... Rxg2 {[%clk 0:00:04.9]} 51. Kf3 {[%clk 0:00:22.6]}
51... Rg1 {[%clk 0:00:04.2]} 52. Rb7+ {[%clk 0:00:23.2]} 52... Kc3 {[%clk
0:00:03.5]} 53. Ra7 {[%clk 0:00:21.5]} 53... Kb4 {[%clk 0:00:03.5]} 54. Rb7+
{[%clk 0:00:21.8]} 54... Ka4 {[%clk 0:00:03.6]} 55. Rh7 {[%clk 0:00:21.6]} 55...
Rh1 {[%clk 0:00:03.9]} 56. g5 {[%clk 0:00:22]} 56... Rh3+ {[%clk 0:00:03.6]} 57.
Kg4 {[%clk 0:00:22]} 57... Rh1 {[%clk 0:00:03.6]} 58. gxh6 {[%clk 0:00:21.4]}
58... Kb3 {[%clk 0:00:02.8]} 59. Ra7 {[%clk 0:00:21]} 59... a4 {[%clk
0:00:03.2]} 60. h7 {[%clk 0:00:20.6]} 60... a3 {[%clk 0:00:03.8]} 61. Kg5 {[%clk
0:00:20]} 61... a2 {[%clk 0:00:03.1]} 62. Kg6 {[%clk 0:00:20.1]} 62... Kb2
{[%clk 0:00:03.6]} 63. Kg7 {[%clk 0:00:19.6]} 63... Rxh7+ {[%clk 0:00:03.8]} 64.
Kxh7 {[%clk 0:00:19.6]} 64... a1=Q {[%clk 0:00:04.7]} 65. Rxa1 {[%clk
0:00:19.8]} 65... Kxa1 {[%clk 0:00:05.6]} 1/2-1/2